[Event "Titled Tuesday Blitz March 14 Late 2023"]
[White "Mirimanian, Hayk"]
[Black "Avila Pavas, Santiago"]
[WhiteFideId "4700180"]
[BlackFideId "4437128"]
[WhiteElo "2280"]
[BlackElo "2365"]
[Result "0-1"]
[Round "04"]
[TimeControl "180+1"]
[Date "2023.03.14"]
[WhiteClock "0:00:11"]
[BlackClock "0:00:12"]

1. e4 {[%clk 0:03:00]}  Nf6 {[%clk 0:03:00]} 2. e5 {[%clk 0:02:59]}  Nd5 {[%clk 0:03:01]} 3. c4 {[%clk 0:02:58]}  Nb6 {[%clk 0:03:01]} 4. d4 {[%clk 0:02:58]}  d6 {[%clk 0:03:02]} 5. exd6 {[%clk 0:02:57]}  cxd6 {[%clk 0:03:02]} 6. Nc3 {[%clk 0:02:53]}  g6 {[%clk 0:03:03]} 7. a4 {[%clk 0:02:50]}  Bg7 {[%clk 0:03:02]} 8. a5 {[%clk 0:02:50]}  N6d7 {[%clk 0:03:02]} 9. Nf3 {[%clk 0:02:46]}  O-O {[%clk 0:03:02]} 10. Be2 {[%clk 0:02:44]}  Nc6 {[%clk 0:03:00]} 11. O-O {[%clk 0:02:37]}  Nxa5 {[%clk 0:03:00]} 12. b4 {[%clk 0:02:33]}  Nc6 {[%clk 0:03:00]} 13. b5 {[%clk 0:02:32]}  Na5 {[%clk 0:02:53]} 14. Bg5 {[%clk 0:02:27]}  b6 {[%clk 0:02:50]} 15. Nd5 {[%clk 0:02:25]}  Re8 {[%clk 0:02:42]} 16. Nb4 {[%clk 0:02:25]}  Bb7 {[%clk 0:02:27]} 17. Ra2 {[%clk 0:02:16]}  Rc8 {[%clk 0:02:00]} 18. d5 {[%clk 0:02:08]}  Nxc4 {[%clk 0:01:58]} 19. Nc6 {[%clk 0:01:58]}  Bxc6 {[%clk 0:01:54]} 20. dxc6 {[%clk 0:01:57]}  Nde5 {[%clk 0:01:42]} 21. Nxe5 {[%clk 0:01:53]}  Nxe5 {[%clk 0:01:43]} 22. f4 {[%clk 0:01:46]}  f6 {[%clk 0:00:54]} 23. Bh4 {[%clk 0:01:46]}  Nf7 {[%clk 0:00:54]} 24. Rxa7 {[%clk 0:01:46]}  Ra8 {[%clk 0:00:51]} 25. Rd7 {[%clk 0:01:39]}  Qc8 {[%clk 0:00:50]} 26. Bc4 {[%clk 0:01:39]}  e6 {[%clk 0:00:42]} 27. Re1 {[%clk 0:00:25]}  d5 {[%clk 0:00:41]} 28. Bxd5 {[%clk 0:00:25]}  exd5 {[%clk 0:00:39]} 29. Qxd5 {[%clk 0:00:26]}  Rxe1+ {[%clk 0:00:34]} 30. Bxe1 {[%clk 0:00:27]}  Qe8 {[%clk 0:00:34]} 31. Kf1 {[%clk 0:00:20]}  Ra1 {[%clk 0:00:07]} 32. Qd2 {[%clk 0:00:17]}  Bf8 {[%clk 0:00:06]} 33. c7 {[%clk 0:00:13]}  Rxe1+ {[%clk 0:00:06]} 34. Qxe1 {[%clk 0:00:13]}  Qxd7 {[%clk 0:00:06]} 35. Qc3 {[%clk 0:00:13]}  Qc8 {[%clk 0:00:05]} 36. Qc6 {[%clk 0:00:12]}  Bd6 {[%clk 0:00:06]} 37. Qxb6 {[%clk 0:00:10]}  Qxc7 {[%clk 0:00:06]} 38. Qd4 {[%clk 0:00:10]}  Bxf4 {[%clk 0:00:04]} 39. Qxf6 {[%clk 0:00:10]}  Be5 {[%clk 0:00:03]} 40. Qe6 {[%clk 0:00:10]}  Qc1+ {[%clk 0:00:03]} 41. Ke2 {[%clk 0:00:10]}  Qb2+ {[%clk 0:00:04]} 42. Kf3 {[%clk 0:00:10]}  Qxb5 {[%clk 0:00:04]} 43. Qc8+ {[%clk 0:00:09]}  Kg7 {[%clk 0:00:05]} 44. Qc2 {[%clk 0:00:09]}  Qd5+ {[%clk 0:00:04]} 45. Kf2 {[%clk 0:00:09]}  Bd4+ {[%clk 0:00:05]} 46. Kg3 {[%clk 0:00:08]}  Qe5+ {[%clk 0:00:05]} 47. Kf3 {[%clk 0:00:09]}  Ng5+ {[%clk 0:00:05]} 48. Kg4 {[%clk 0:00:08]}  Qe4+ {[%clk 0:00:05]} 49. Qxe4 {[%clk 0:00:08]}  Nxe4 {[%clk 0:00:06]} 50. Kf4 {[%clk 0:00:09]}  Nf6 {[%clk 0:00:06]} 51. h3 {[%clk 0:00:09]}  Bb6 {[%clk 0:00:07]} 52. g4 {[%clk 0:00:09]}  Bc7+ {[%clk 0:00:08]} 53. Ke3 {[%clk 0:00:08]}  g5 {[%clk 0:00:08]} 54. Kd3 {[%clk 0:00:08]}  Bd6 {[%clk 0:00:09]} 55. Kd4 {[%clk 0:00:09]}  h6 {[%clk 0:00:09]} 56. Kc4 {[%clk 0:00:09]}  Kf7 {[%clk 0:00:10]} 57. Kb5 {[%clk 0:00:09]}  Ke6 {[%clk 0:00:11]} 58. Kc6 {[%clk 0:00:10]}  Ke5 {[%clk 0:00:11]} 59. Kb5 {[%clk 0:00:09]}  Kf4 {[%clk 0:00:11]} 60. Kc6 {[%clk 0:00:10]}  Be5 {[%clk 0:00:12]} 61. Kb7 {[%clk 0:00:09]}  Kg3 {[%clk 0:00:12]} 62. Kc8 {[%clk 0:00:10]}  Kxh3 {[%clk 0:00:12]} 63. Kd8 {[%clk 0:00:11]}  Bd6 {[%clk 0:00:12]} 0-1


[Site "https://www.chess.com"]

[Event "Titled Tuesday Blitz March 14 Late 2023"]
[White "Movahed, Sina"]
[Black "Fiorito, Joaquin"]
[WhiteFideId "42520835"]
[BlackFideId "180173"]
[WhiteElo "2225"]
[BlackElo "2157"]
[Result "0-1"]
[Round "04"]
[TimeControl "180+1"]
[Date "2023.03.14"]
[WhiteClock "0:00:01"]
[BlackClock "0:01:08"]

1. e4 {[%clk 0:03:00]}  c6 {[%clk 0:02:59]} 2. Nf3 {[%clk 0:02:57]}  d5 {[%clk 0:03:00]} 3. Nc3 {[%clk 0:02:57]}  Bg4 {[%clk 0:03:00]} 4. h3 {[%clk 0:02:57]}  Bxf3 {[%clk 0:03:01]} 5. Qxf3 {[%clk 0:02:56]}  e6 {[%clk 0:03:01]} 6. Be2 {[%clk 0:02:30]}  Nd7 {[%clk 0:02:56]} 7. d4 {[%clk 0:02:27]}  Bd6 {[%clk 0:02:52]} 8. e5 {[%clk 0:02:24]}  Bc7 {[%clk 0:02:52]} 9. Qg3 {[%clk 0:02:20]}  Ne7 {[%clk 0:02:46]} 10. Qxg7 {[%clk 0:02:13]}  Rg8 {[%clk 0:02:46]} 11. Qxh7 {[%clk 0:02:13]}  Nf8 {[%clk 0:02:46]} 12. Qh4 {[%clk 0:02:06]}  Nf5 {[%clk 0:02:43]} 13. Qxd8+ {[%clk 0:01:53]}  Rxd8 {[%clk 0:02:44]} 14. Bf1 {[%clk 0:01:40]}  Nxd4 {[%clk 0:02:43]} 15. f4 {[%clk 0:01:40]}  Nxc2+ {[%clk 0:02:43]} 16. Kd1 {[%clk 0:01:37]}  Nxa1 {[%clk 0:02:43]} 17. b3 {[%clk 0:01:34]}  Ng6 {[%clk 0:02:28]} 18. h4 {[%clk 0:01:27]}  Ne7 {[%clk 0:02:24]} 19. h5 {[%clk 0:01:24]}  Nf5 {[%clk 0:02:24]} 20. Ne2 {[%clk 0:01:18]}  Kd7 {[%clk 0:02:21]} 21. Rh3 {[%clk 0:01:07]}  Bb6 {[%clk 0:02:17]} 22. Bb2 {[%clk 0:00:37]}  Ne3+ {[%clk 0:02:05]} 23. Rxe3 {[%clk 0:00:37]}  Bxe3 {[%clk 0:02:06]} 24. Bxa1 {[%clk 0:00:36]}  Bf2 {[%clk 0:01:50]} 25. Bc3 {[%clk 0:00:30]}  b6 {[%clk 0:01:50]} 26. Bd2 {[%clk 0:00:30]}  Ke7 {[%clk 0:01:41]} 27. Nc1 {[%clk 0:00:30]}  Bg3 {[%clk 0:01:34]} 28. Nd3 {[%clk 0:00:30]}  c5 {[%clk 0:01:28]} 29. Ke2 {[%clk 0:00:28]}  Rh8 {[%clk 0:01:28]} 30. Kf3 {[%clk 0:00:28]}  Rdg8 {[%clk 0:01:27]} 31. h6 {[%clk 0:00:17]}  Rxh6 {[%clk 0:01:21]} 32. f5 {[%clk 0:00:18]}  Rh5 {[%clk 0:01:21]} 33. f6+ {[%clk 0:00:18]}  Kd7 {[%clk 0:01:20]} 34. Ke2 {[%clk 0:00:10]}  Bxe5 {[%clk 0:01:17]} 35. Be3 {[%clk 0:00:08]}  Bxf6 {[%clk 0:01:16]} 36. Nf4 {[%clk 0:00:08]}  Rf5 {[%clk 0:01:17]} 37. Ke1 {[%clk 0:00:05]}  Bh4+ {[%clk 0:01:16]} 38. Kd1 {[%clk 0:00:05]}  e5 {[%clk 0:01:14]} 39. Bb5+ {[%clk 0:00:05]}  Kd6 {[%clk 0:01:15]} 40. Ne2 {[%clk 0:00:05]}  d4 {[%clk 0:01:14]} 41. Bd2 {[%clk 0:00:04]}  e4 {[%clk 0:01:13]} 42. b4 {[%clk 0:00:03]}  Rxg2 {[%clk 0:01:12]} 43. bxc5+ {[%clk 0:00:02]}  bxc5 {[%clk 0:01:12]} 44. Bc4 {[%clk 0:00:02]}  e3 {[%clk 0:01:11]} 45. Bc1 {[%clk 0:00:02]}  Rf1+ {[%clk 0:01:11]} 46. Kc2 {[%clk 0:00:02]}  Rxe2+ {[%clk 0:01:09]} 47. Bxe2 {[%clk 0:00:01]}  Rf2 {[%clk 0:01:10]} 48. Kd1 {[%clk 0:00:01]}  Kd5 {[%clk 0:01:10]} 49. Ba3 {[%clk 0:00:01]}  Rxe2 {[%clk 0:01:08]} 50. Bc1 {[%clk 0:00:01]}  Re1+ {[%clk 0:01:08]} 0-1


[Site "https://www.chess.com"]

[Event "Titled Tuesday Blitz March 14 Late 2023"]
[White "Nakamura, Hikaru"]
[Black "Hansen, Eric"]
[WhiteFideId "2016192"]
[BlackFideId "2606771"]
[WhiteElo "2879"]
[BlackElo "2569"]
[Result "1/2-1/2"]
[Round "04"]
[TimeControl "180+1"]
[Date "2023.03.14"]
[WhiteClock "0:00:09"]
[BlackClock "0:00:15"]

1. Nf3 {[%clk 0:03:00]}  d5 {[%clk 0:02:59]} 2. g3 {[%clk 0:02:57]}  g6 {[%clk 0:02:55]} 3. Bg2 {[%clk 0:02:51]}  Bg7 {[%clk 0:02:55]} 4. O-O {[%clk 0:02:52]}  e5 {[%clk 0:02:52]} 5. d3 {[%clk 0:02:51]}  Ne7 {[%clk 0:02:52]} 6. c4 {[%clk 0:02:51]}  O-O {[%clk 0:02:44]} 7. Nc3 {[%clk 0:02:50]}  dxc4 {[%clk 0:02:37]} 8. dxc4 {[%clk 0:02:49]}  Nbc6 {[%clk 0:02:37]} 9. e4 {[%clk 0:02:32]}  Nd4 {[%clk 0:02:34]} 10. h3 {[%clk 0:02:18]}  Be6 {[%clk 0:02:19]} 11. b3 {[%clk 0:02:18]}  Nxf3+ {[%clk 0:02:15]} 12. Qxf3 {[%clk 0:02:17]}  Nc6 {[%clk 0:02:16]} 13. Rd1 {[%clk 0:02:05]}  Nd4 {[%clk 0:02:16]} 14. Qd3 {[%clk 0:02:05]}  Qc8 {[%clk 0:02:09]} 15. Kh2 {[%clk 0:01:59]}  c6 {[%clk 0:01:57]} 16. Ne2 {[%clk 0:01:53]}  Rd8 {[%clk 0:01:57]} 17. Bb2 {[%clk 0:01:47]}  Qc7 {[%clk 0:01:53]} 18. Nxd4 {[%clk 0:01:46]}  exd4 {[%clk 0:01:52]} 19. f4 {[%clk 0:01:46]}  c5 {[%clk 0:01:51]} 20. Rf1 {[%clk 0:01:41]}  Rab8 {[%clk 0:01:43]} 21. f5 {[%clk 0:01:13]}  Bd7 {[%clk 0:01:41]} 22. Bc1 {[%clk 0:01:11]}  Re8 {[%clk 0:01:39]} 23. Bf4 {[%clk 0:01:08]}  Be5 {[%clk 0:01:39]} 24. Rf2 {[%clk 0:01:07]}  b5 {[%clk 0:01:28]} 25. Rc1 {[%clk 0:01:02]}  Bxf4 {[%clk 0:01:14]} 26. Rxf4 {[%clk 0:00:58]}  Qe5 {[%clk 0:00:55]} 27. cxb5 {[%clk 0:00:47]}  Bxb5 {[%clk 0:00:53]} 28. Qd2 {[%clk 0:00:47]}  Rb6 {[%clk 0:00:40]} 29. h4 {[%clk 0:00:43]}  Rd8 {[%clk 0:00:34]} 30. Qf2 {[%clk 0:00:42]}  Rb7 {[%clk 0:00:26]} 31. Bf1 {[%clk 0:00:33]}  Bxf1 {[%clk 0:00:24]} 32. Rxf1 {[%clk 0:00:34]}  Rdd7 {[%clk 0:00:19]} 33. Rg4 {[%clk 0:00:22]}  d3 {[%clk 0:00:17]} 34. fxg6 {[%clk 0:00:21]}  hxg6 {[%clk 0:00:15]} 35. Rg5 {[%clk 0:00:09]}  Qxe4 {[%clk 0:00:08]} 36. Rxc5 {[%clk 0:00:09]}  Rd8 {[%clk 0:00:05]} 37. Qf6 {[%clk 0:00:07]}  Qe7 {[%clk 0:00:04]} 38. Rcc1 {[%clk 0:00:02]}  d2 {[%clk 0:00:04]} 39. Rcd1 {[%clk 0:00:02]}  Qxf6 {[%clk 0:00:03]} 40. Rxf6 {[%clk 0:00:02]}  Rc7 {[%clk 0:00:03]} 41. Rf2 {[%clk 0:00:03]}  Rc2 {[%clk 0:00:03]} 42. a4 {[%clk 0:00:04]}  Rd4 {[%clk 0:00:03]} 43. Kg2 {[%clk 0:00:04]}  Rb4 {[%clk 0:00:04]} 44. Rfxd2 {[%clk 0:00:04]}  Rxd2+ {[%clk 0:00:04]} 45. Rxd2 {[%clk 0:00:05]}  Rxb3 {[%clk 0:00:05]} 46. Rd7 {[%clk 0:00:06]}  Rb2+ {[%clk 0:00:05]} 47. Kh3 {[%clk 0:00:06]}  Ra2 {[%clk 0:00:02]} 48. Rxa7 {[%clk 0:00:07]}  Kg7 {[%clk 0:00:02]} 49. a5 {[%clk 0:00:07]}  Ra4 {[%clk 0:00:03]} 50. a6 {[%clk 0:00:08]}  Kg8 {[%clk 0:00:03]} 51. Rb7 {[%clk 0:00:09]}  Rxa6 {[%clk 0:00:02]} 52. Rb3 {[%clk 0:00:04]}  Kg7 {[%clk 0:00:02]} 53. g4 {[%clk 0:00:04]}  Ra4 {[%clk 0:00:03]} 54. Rc3 {[%clk 0:00:04]}  Ra7 {[%clk 0:00:03]} 55. Rb3 {[%clk 0:00:03]}  Re7 {[%clk 0:00:04]} 56. Rf3 {[%clk 0:00:04]}  Re6 {[%clk 0:00:05]} 57. Rc3 {[%clk 0:00:04]}  Re7 {[%clk 0:00:05]} 58. Kg3 {[%clk 0:00:05]}  Re6 {[%clk 0:00:06]} 59. Rc5 {[%clk 0:00:05]}  Re7 {[%clk 0:00:06]} 60. h5 {[%clk 0:00:06]}  gxh5 {[%clk 0:00:07]} 61. Rxh5 {[%clk 0:00:05]}  Re3+ {[%clk 0:00:07]} 62. Kf4 {[%clk 0:00:06]}  Re6 {[%clk 0:00:08]} 63. Rg5+ {[%clk 0:00:05]}  Kf8 {[%clk 0:00:08]} 64. Ra5 {[%clk 0:00:06]}  Rf6+ {[%clk 0:00:08]} 65. Kg3 {[%clk 0:00:07]}  Kg7 {[%clk 0:00:09]} 66. g5 {[%clk 0:00:07]}  Rc6 {[%clk 0:00:09]} 67. Kf4 {[%clk 0:00:08]}  Rc4+ {[%clk 0:00:09]} 68. Kf5 {[%clk 0:00:08]}  Rc1 {[%clk 0:00:10]} 69. Ra6 {[%clk 0:00:08]}  Rf1+ {[%clk 0:00:10]} 70. Kg4 {[%clk 0:00:08]}  Rg1+ {[%clk 0:00:11]} 71. Kf4 {[%clk 0:00:08]}  Rf1+ {[%clk 0:00:11]} 72. Ke3 {[%clk 0:00:07]}  Rg1 {[%clk 0:00:11]} 73. Kf2 {[%clk 0:00:08]}  Rxg5 {[%clk 0:00:11]} 74. Kf3 {[%clk 0:00:08]}  Rg6 {[%clk 0:00:11]} 75. Ra5 {[%clk 0:00:07]}  Re6 {[%clk 0:00:12]} 76. Kf4 {[%clk 0:00:04]}  Kg6 {[%clk 0:00:11]} 77. Kg4 {[%clk 0:00:04]}  Re4+ {[%clk 0:00:10]} 78. Kf3 {[%clk 0:00:05]}  Re6 {[%clk 0:00:10]} 79. Kf4 {[%clk 0:00:05]}  Kg7 {[%clk 0:00:11]} 80. Kg4 {[%clk 0:00:05]}  Rg6+ {[%clk 0:00:11]} 81. Kf4 {[%clk 0:00:06]}  Rb6 {[%clk 0:00:12]} 82. Kg4 {[%clk 0:00:06]}  Kf6 {[%clk 0:00:12]} 83. Rf5+ {[%clk 0:00:06]}  Kg6 {[%clk 0:00:12]} 84. Ra5 {[%clk 0:00:07]}  Rb4+ {[%clk 0:00:12]} 85. Kg3 {[%clk 0:00:07]}  f5 {[%clk 0:00:12]} 86. Ra8 {[%clk 0:00:08]}  Kg5 {[%clk 0:00:13]} 87. Rg8+ {[%clk 0:00:08]}  Kf6 {[%clk 0:00:13]} 88. Rf8+ {[%clk 0:00:09]}  Ke6 {[%clk 0:00:14]} 89. Re8+ {[%clk 0:00:09]}  Kf7 {[%clk 0:00:14]} 90. Ra8 {[%clk 0:00:10]}  Rc4 {[%clk 0:00:14]} 91. Kf3 {[%clk 0:00:10]}  Ke6 {[%clk 0:00:14]} 92. Rf8 {[%clk 0:00:10]}  Ke5 {[%clk 0:00:14]} 93. Re8+ {[%clk 0:00:11]}  Kd5 {[%clk 0:00:14]} 94. Rf8 {[%clk 0:00:11]}  Ke6 {[%clk 0:00:15]} 95. Re8+ {[%clk 0:00:12]}  Kf7 {[%clk 0:00:15]} 96. Ra8 {[%clk 0:00:13]}  Rb4 {[%clk 0:00:15]} 97. Ra6 {[%clk 0:00:13]}  Kg7 {[%clk 0:00:15]} 98. Rc6 {[%clk 0:00:13]}  Kf7 {[%clk 0:00:16]} 99. Rd6 {[%clk 0:00:13]}  Ke7 {[%clk 0:00:16]} 100. Ra6 {[%clk 0:00:14]}  Rc4 {[%clk 0:00:14]} 101. Ke3 {[%clk 0:00:14]}  Rh4 {[%clk 0:00:14]} 102. Kf3 {[%clk 0:00:14]}  Kf7 {[%clk 0:00:07]} 103. Ra7+ {[%clk 0:00:12]}  Kf6 {[%clk 0:00:07]} 104. Ra8 {[%clk 0:00:13]}  Rh3+ {[%clk 0:00:07]} 105. Kf4 {[%clk 0:00:13]}  Rh4+ {[%clk 0:00:07]} 106. Kg3 {[%clk 0:00:13]}  Rb4 {[%clk 0:00:08]} 107. Kf3 {[%clk 0:00:13]}  Rb3+ {[%clk 0:00:08]} 108. Kf4 {[%clk 0:00:06]}  Rb4+ {[%clk 0:00:08]} 109. Ke3 {[%clk 0:00:07]}  Ke5 {[%clk 0:00:08]} 110. Re8+ {[%clk 0:00:06]}  Kf6 {[%clk 0:00:08]} 111. Rf8+ {[%clk 0:00:04]}  Ke6 {[%clk 0:00:08]} 112. Kf3 {[%clk 0:00:04]}  Rb3+ {[%clk 0:00:08]} 113. Kf4 {[%clk 0:00:05]}  Rb4+ {[%clk 0:00:08]} 114. Kg3 {[%clk 0:00:06]}  Ke5 {[%clk 0:00:07]} 115. Re8+ {[%clk 0:00:06]}  Kf6 {[%clk 0:00:07]} 116. Ra8 {[%clk 0:00:07]}  Kg5 {[%clk 0:00:07]} 117. Rg8+ {[%clk 0:00:07]}  Kf6 {[%clk 0:00:07]} 118. Rh8 {[%clk 0:00:08]}  Kg7 {[%clk 0:00:07]} 119. Rc8 {[%clk 0:00:07]}  Ra4 {[%clk 0:00:07]} 120. Kf3 {[%clk 0:00:08]}  Kf7 {[%clk 0:00:07]} 121. Rc6 {[%clk 0:00:08]}  Ke7 {[%clk 0:00:07]} 122. Rh6 {[%clk 0:00:08]}  Kf7 {[%clk 0:00:08]} 123. Ke3 {[%clk 0:00:08]}  Kg7 {[%clk 0:00:08]} 124. Rb6 {[%clk 0:00:09]}  Kf7 {[%clk 0:00:08]} 125. Kf2 {[%clk 0:00:08]}  Ra3 {[%clk 0:00:08]} 126. Kg2 {[%clk 0:00:08]}  Kg7 {[%clk 0:00:09]} 127. Kf2 {[%clk 0:00:08]}  Rc3 {[%clk 0:00:09]} 128. Ra6 {[%clk 0:00:07]}  Rb3 {[%clk 0:00:09]} 129. Ke2 {[%clk 0:00:07]}  Rh3 {[%clk 0:00:09]} 130. Ra8 {[%clk 0:00:06]}  Kf6 {[%clk 0:00:09]} 131. Ra4 {[%clk 0:00:07]}  Kg5 {[%clk 0:00:09]} 132. Kf2 {[%clk 0:00:07]}  Rh4 {[%clk 0:00:09]} 133. Ra8 {[%clk 0:00:08]}  Kf4 {[%clk 0:00:10]} 134. Ra4+ {[%clk 0:00:07]}  Kg5 {[%clk 0:00:10]} 135. Rxh4 {[%clk 0:00:04]}  Kxh4 {[%clk 0:00:11]} 136. Kf3 {[%clk 0:00:05]}  Kg5 {[%clk 0:00:11]} 137. Kg3 {[%clk 0:00:05]}  f4+ {[%clk 0:00:12]} 138. Kf3 {[%clk 0:00:06]}  Kf5 {[%clk 0:00:13]} 139. Kf2 {[%clk 0:00:07]}  Ke4 {[%clk 0:00:13]} 140. Ke2 {[%clk 0:00:07]}  Ke5 {[%clk 0:00:14]} 141. Kf3 {[%clk 0:00:08]}  Kf5 {[%clk 0:00:15]} 142. Kf2 {[%clk 0:00:09]}  Kg5 {[%clk 0:00:15]} 143. Kf3 {[%clk 0:00:09]}  Kf5 {[%clk 0:00:15]} 1/2-1/2


[Site "https://www.chess.com"]

[Event "Titled Tuesday Blitz March 14 Late 2023"]
[White "Nesterov, Arseniy"]
[Black "Lazavik, Denis"]
[WhiteFideId "24198455"]
[BlackFideId "13515110"]
[WhiteElo "2491"]
[BlackElo "2560"]
[Result "1/2-1/2"]
[Round "04"]
[TimeControl "180+1"]
[Date "2023.03.14"]
[WhiteClock "0:00:07"]
[BlackClock "0:00:04"]

1. d4 {[%clk 0:03:00]}  Nf6 {[%clk 0:03:00]} 2. c4 {[%clk 0:03:00]}  e6 {[%clk 0:03:01]} 3. Nf3 {[%clk 0:02:59]}  d5 {[%clk 0:03:01]} 4. Nc3 {[%clk 0:03:00]}  Be7 {[%clk 0:02:56]} 5. Bg5 {[%clk 0:03:00]}  h6 {[%clk 0:02:56]} 6. Bxf6 {[%clk 0:03:00]}  Bxf6 {[%clk 0:02:56]} 7. e3 {[%clk 0:03:00]}  O-O {[%clk 0:02:55]} 8. h4 {[%clk 0:03:01]}  c5 {[%clk 0:02:52]} 9. g4 {[%clk 0:03:00]}  cxd4 {[%clk 0:02:51]} 10. exd4 {[%clk 0:03:01]}  Nc6 {[%clk 0:02:51]} 11. g5 {[%clk 0:03:01]}  hxg5 {[%clk 0:02:51]} 12. hxg5 {[%clk 0:03:02]}  Bxg5 {[%clk 0:02:51]} 13. Qd3 {[%clk 0:03:03]}  f5 {[%clk 0:02:48]} 14. cxd5 {[%clk 0:02:42]}  exd5 {[%clk 0:02:46]} 15. Bg2 {[%clk 0:02:42]}  Be6 {[%clk 0:02:39]} 16. Kf1 {[%clk 0:02:38]}  Bh6 {[%clk 0:02:38]} 17. Re1 {[%clk 0:02:34]}  Qf6 {[%clk 0:02:18]} 18. Qb5 {[%clk 0:02:18]}  Rae8 {[%clk 0:02:00]} 19. Qxb7 {[%clk 0:02:14]}  Bf7 {[%clk 0:01:47]} 20. Rxe8 {[%clk 0:02:05]}  Rxe8 {[%clk 0:01:46]} 21. Qd7 {[%clk 0:01:54]}  Rd8 {[%clk 0:00:32]} 22. Qc7 {[%clk 0:01:50]}  Qd6 {[%clk 0:00:33]} 23. Qxd6 {[%clk 0:01:38]}  Rxd6 {[%clk 0:00:34]} 24. Ke2 {[%clk 0:01:22]}  g5 {[%clk 0:00:33]} 25. Kd3 {[%clk 0:01:16]}  Kg7 {[%clk 0:00:30]} 26. a3 {[%clk 0:01:14]}  g4 {[%clk 0:00:23]} 27. Ne5 {[%clk 0:01:06]}  Nxe5+ {[%clk 0:00:17]} 28. dxe5 {[%clk 0:01:06]}  Rd7 {[%clk 0:00:15]} 29. Kd4 {[%clk 0:00:48]}  Bd2 {[%clk 0:00:14]} 30. Nxd5 {[%clk 0:00:41]}  f4 {[%clk 0:00:13]} 31. Be4 {[%clk 0:00:41]}  g3 {[%clk 0:00:10]} 32. fxg3 {[%clk 0:00:33]}  fxg3 {[%clk 0:00:11]} 33. Rh3 {[%clk 0:00:20]}  Bf4 {[%clk 0:00:10]} 34. Rh4 {[%clk 0:00:18]}  Bc1 {[%clk 0:00:07]} 35. Rg4+ {[%clk 0:00:18]}  Kf8 {[%clk 0:00:07]} 36. Rxg3 {[%clk 0:00:08]}  Bxb2+ {[%clk 0:00:08]} 37. Kc5 {[%clk 0:00:09]}  Bxe5 {[%clk 0:00:09]} 38. Rf3 {[%clk 0:00:10]}  Kg7 {[%clk 0:00:09]} 39. Rf5 {[%clk 0:00:09]}  Bb2 {[%clk 0:00:08]} 40. Rg5+ {[%clk 0:00:09]}  Kf8 {[%clk 0:00:08]} 41. Rg3 {[%clk 0:00:08]}  Rd8 {[%clk 0:00:07]} 42. Nb4 {[%clk 0:00:06]}  Bd4+ {[%clk 0:00:07]} 43. Kb5 {[%clk 0:00:06]}  Bb6 {[%clk 0:00:07]} 44. Rf3 {[%clk 0:00:05]}  Kg7 {[%clk 0:00:06]} 45. Rg3+ {[%clk 0:00:06]}  Kh6 {[%clk 0:00:06]} 46. Rf3 {[%clk 0:00:05]}  Be8+ {[%clk 0:00:05]} 47. Bc6 {[%clk 0:00:06]}  Bh5 {[%clk 0:00:05]} 48. Rh3 {[%clk 0:00:06]}  Kg5 {[%clk 0:00:05]} 49. Nd5 {[%clk 0:00:06]}  Be2+ {[%clk 0:00:05]} 50. Kb4 {[%clk 0:00:06]}  Bd4 {[%clk 0:00:03]} 51. Rg3+ {[%clk 0:00:06]}  Kh4 {[%clk 0:00:03]} 52. Rg2 {[%clk 0:00:06]}  Rb8+ {[%clk 0:00:04]} 53. Ka4 {[%clk 0:00:05]}  Bd1+ {[%clk 0:00:04]} 54. Ka5 {[%clk 0:00:06]}  Bf3 {[%clk 0:00:05]} 55. Rd2 {[%clk 0:00:06]}  Bb6+ {[%clk 0:00:04]} 56. Nxb6 {[%clk 0:00:04]}  axb6+ {[%clk 0:00:05]} 57. Kb5 {[%clk 0:00:05]}  Bg4 {[%clk 0:00:05]} 58. Rd4 {[%clk 0:00:04]}  Kg5 {[%clk 0:00:05]} 59. a4 {[%clk 0:00:05]}  Be2+ {[%clk 0:00:06]} 60. Kb4 {[%clk 0:00:05]}  Kf6 {[%clk 0:00:06]} 61. Bb5 {[%clk 0:00:05]}  Bh5 {[%clk 0:00:05]} 62. Rd5 {[%clk 0:00:04]}  Bf7 {[%clk 0:00:05]} 63. Rd7 {[%clk 0:00:04]}  Be6 {[%clk 0:00:05]} 64. Ra7 {[%clk 0:00:04]}  Ke5 {[%clk 0:00:05]} 65. Bc4 {[%clk 0:00:04]}  Bf5 {[%clk 0:00:05]} 66. Kb5 {[%clk 0:00:03]}  Kd6 {[%clk 0:00:04]} 67. Rf7 {[%clk 0:00:03]}  Bd7+ {[%clk 0:00:04]} 68. Kb4 {[%clk 0:00:03]}  Rh8 {[%clk 0:00:04]} 69. Rf6+ {[%clk 0:00:03]}  Kc7 {[%clk 0:00:05]} 70. Rf7 {[%clk 0:00:04]}  Rh4 {[%clk 0:00:05]} 71. Kb3 {[%clk 0:00:04]}  Kd6 {[%clk 0:00:04]} 72. Rg7 {[%clk 0:00:03]}  Bc6 {[%clk 0:00:03]} 73. Rg6+ {[%clk 0:00:03]}  Kc5 {[%clk 0:00:04]} 74. Rg5+ {[%clk 0:00:03]}  Kd4 {[%clk 0:00:05]} 75. Rg6 {[%clk 0:00:03]}  Be8 {[%clk 0:00:01]} 76. Rxb6 {[%clk 0:00:03]}  Kc5 {[%clk 0:00:02]} 77. Rb8 {[%clk 0:00:03]}  Rh3+ {[%clk 0:00:02]} 78. Kb2 {[%clk 0:00:03]}  Bxa4 {[%clk 0:00:03]} 79. Rc8+ {[%clk 0:00:03]}  Kb4 {[%clk 0:00:03]} 80. Ba2 {[%clk 0:00:03]}  Rh2+ {[%clk 0:00:04]} 81. Ka1 {[%clk 0:00:04]}  Bb5 {[%clk 0:00:04]} 82. Rb8 {[%clk 0:00:03]}  Rf2 {[%clk 0:00:04]} 83. Bb1 {[%clk 0:00:04]}  Kc5 {[%clk 0:00:03]} 84. Rc8+ {[%clk 0:00:03]}  Kd4 {[%clk 0:00:04]} 85. Rc2 {[%clk 0:00:04]}  Rf6 {[%clk 0:00:03]} 86. Kb2 {[%clk 0:00:04]}  Bd3 {[%clk 0:00:04]} 87. Rc1 {[%clk 0:00:04]}  Rb6+ {[%clk 0:00:04]} 88. Ka1 {[%clk 0:00:05]}  Bc4 {[%clk 0:00:04]} 89. Rd1+ {[%clk 0:00:04]}  Kc3 {[%clk 0:00:04]} 90. Rc1+ {[%clk 0:00:05]}  Kb4 {[%clk 0:00:04]} 91. Rc2 {[%clk 0:00:05]}  Ra6+ {[%clk 0:00:03]} 92. Kb2 {[%clk 0:00:06]}  Rh6 {[%clk 0:00:02]} 93. Rd2 {[%clk 0:00:06]}  Rh3 {[%clk 0:00:02]} 94. Bc2 {[%clk 0:00:06]}  Ra3 {[%clk 0:00:02]} 95. Rd4 {[%clk 0:00:06]}  Ra5 {[%clk 0:00:02]} 96. Bd3 {[%clk 0:00:06]}  Ra2+ {[%clk 0:00:02]} 97. Kb1 {[%clk 0:00:07]}  Kc3 {[%clk 0:00:02]} 98. Rxc4+ {[%clk 0:00:07]}  Kxd3 {[%clk 0:00:03]} 99. Kxa2 {[%clk 0:00:07]}  Kxc4 {[%clk 0:00:04]} 1/2-1/2


[Site "https://www.chess.com"]

[Event "Titled Tuesday Blitz March 14 Late 2023"]
[White "Omelja, Artem"]
[Black "Sabar, Ethmane Daouda"]
[WhiteFideId "14119846"]
[BlackFideId "19600097"]
[WhiteElo "2404"]
[BlackElo "1950"]
[Result "1-0"]
[Round "04"]
[TimeControl "180+1"]
[Date "2023.03.14"]
[WhiteClock "0:02:08"]
[BlackClock "0:01:07"]

1. e4 {[%clk 0:02:59]}  e5 {[%clk 0:02:57]} 2. Nf3 {[%clk 0:02:59]}  Nc6 {[%clk 0:02:57]} 3. d4 {[%clk 0:02:45]}  exd4 {[%clk 0:02:56]} 4. Nxd4 {[%clk 0:02:46]}  Nf6 {[%clk 0:02:56]} 5. Nxc6 {[%clk 0:02:44]}  bxc6 {[%clk 0:02:57]} 6. e5 {[%clk 0:02:45]}  Qe7 {[%clk 0:02:58]} 7. Qe2 {[%clk 0:02:45]}  Nd5 {[%clk 0:02:58]} 8. c4 {[%clk 0:02:45]}  Ba6 {[%clk 0:02:58]} 9. h4 {[%clk 0:02:43]}  h6 {[%clk 0:02:47]} 10. Rh3 {[%clk 0:02:37]}  Nb6 {[%clk 0:02:07]} 11. b3 {[%clk 0:02:35]}  Qe6 {[%clk 0:02:01]} 12. Nd2 {[%clk 0:02:31]}  g6 {[%clk 0:01:57]} 13. Bb2 {[%clk 0:02:30]}  Bg7 {[%clk 0:01:57]} 14. O-O-O {[%clk 0:02:30]}  O-O {[%clk 0:01:53]} 15. h5 {[%clk 0:02:23]}  g5 {[%clk 0:01:52]} 16. Re3 {[%clk 0:02:19]}  c5 {[%clk 0:01:32]} 17. Qf3 {[%clk 0:02:09]}  Rab8 {[%clk 0:01:32]} 18. Bd3 {[%clk 0:02:09]}  Bb7 {[%clk 0:01:31]} 19. Qf5 {[%clk 0:02:08]}  Bxg2 {[%clk 0:01:07]} 1-0


[Site "https://www.chess.com"]